[Event "GER-ch Youth-U14w 2022"]
[Site "Willingen"]
[Date "2022.06.10"]
[Round "8.8"]
[White "Flierl, Veronika"]
[Black "Reich, Elisabeth"]
[Result "1/2-1/2"]
[ECO "B23"]
[WhiteElo "1427"]
[BlackElo "1457"]
[Annotator "NA RC COMBH"]
[PlyCount "82"]
[EventDate "2022.06.05"]
[EventType "swiss"]
[EventRounds "9"]
[EventCountry "GER"]
[SourceTitle "playchess.com"]
[Source "ChessBase"]
[SourceQuality "1"]
[TimeControl "40/4500+30:900+30"]

1. e4 {[%emt 0:00:00]} c5 {[%emt 0:00:00]} 2. Nc3 {[%emt 0:00:00]} Nc6 {[%emt 0:00:00]} 3. Nge2 {[%emt 0:00:00]} e6 {[%emt 0:00:00]} 4. g3 {[%emt 0:00:00]} Nf6 {[%emt 0:00:00]} 5. Bg2 {[%emt 0:00:00]} d5 {[%emt 0:00:00]} 6. exd5 {[%emt 0:00:00]} exd5 {[%emt 0:00:00]} 7. O-O {[%emt 0:00:00]} Be7 {[%emt 0:00:00]} 8. d4 {[%emt 0:00:00]} cxd4 {[%emt 0:00:00]} 9. Nxd4 {[%emt 0:00:00]} Bb4 {[%emt 0:00:00]} 10. Nde2 {[%emt 0:02:50]} Bxc3 {[%emt 0:03:37]} 11. Nxc3 {[%emt 0:00:27]} Be6 {[%emt 0:05:35]} 12. Bg5 {[%emt 0:03:58]} O-O {[%emt 0:01:58]} 13. Rb1 {[%emt 0:06:58]} h6 {[%emt 0:03:25]} 14. Bxf6 {[%emt 0:01:49]} Qxf6 {[%emt 0:00:08]} 15. Nxd5 {[%emt 0:02:24]} Bxd5 {[%emt 0:01:07]} 16. Qxd5 {[%emt 0:00:18]} Rfd8 {[%emt 0:00:38]} 17. Qf3 {[%emt 0:07:24]} Qg6 {[%emt 0:02:29]} 18. c3 {[%emt 0:02:29]} Qe6 {[%emt 0:01:17]} 19. b3 {[%emt 0:04:11]} Rd2 {[%emt 0:01:20]} 20. Ra1 {[%emt 0:01:01]} Rad8 {[%emt 0:01:00]} 21. Rfe1 {[%emt 0:02:11]} Qd6 {[%emt 0:02:13]} 22. b4 {[%emt 0:07:33]} a6 {[%emt 0:06:15]} 23. Bf1 {[%emt 0:02:40]} b5 {[%emt 0:04:05]} 24. Qf5 {[%emt 0:09:37]} Rd5 {[%emt 0:08:18]} 25. Qe4 {[%emt 0:02:01]} Qf6 {[%emt 0:06:32]} 26. Re3 {[%emt 0:03:49]} Re5 {[%emt 0:04:11]} 27. Qf3 {[%emt 0:00:17]} Rf5 {[%emt 0:00:57]} 28. Qe2 {[%emt 0:01:44]} Nxb4 {[%emt 0:13:04]} 29. Re8+ {[%emt 0:05:25]} Rxe8 {[%emt 0:00:04]} 30. Qxe8+ {[%emt 0:00:09]} Kh7 {[%emt 0:00:14]} 31. Qe4 {[%emt 0:00:28]} g6 {[%emt 0:03:10]} 32. Qxb4 {[%emt 0:01:44]} Rxf2 {[%emt 0:01:10]} 33. Bg2 {[%emt 0:04:28]} Rf5 {[%emt 0:03:21]} 34. Rd1 {[%emt 0:03:15]} Qe6 {[%emt 0:01:33]} 35. Qb2 {[%emt 0:02:45]} Qe3+ {[%emt 0:01:02]} 36. Kh1 {[%emt 0:00:17]} Rf2 {[%emt 0:00:33]} 37. Qb3 {[%emt 0:03:23]} Qe2 {[%emt 0:01:40]} 38. a3 {[%emt 0:02:17]} Kg7 {[%emt 0:00:51]} 39. Rg1 {[%emt 0:01:21]} Rxg2 {[%emt 0:00:26]} 40. Rxg2 {[%emt 0:00:27]} Qf1+ {[%emt 0:00:09]} 41. Rg1 {[%emt 0:15:08]} Qf3+ {[%emt 0:15:09]} 1/2-1/2

[Event "GER-ch Youth-U14w 2022"]
[Site "Willingen"]
[Date "2022.06.10"]
[Round "8.9"]
[White "Mueller, Riyanna"]
[Black "Eichhorn, Mathilda"]
[Result "1-0"]
[ECO "C02"]
[WhiteElo "1521"]
[BlackElo "1330"]
[Annotator "NA RC COMBH"]
[PlyCount "49"]
[EventDate "2022.06.05"]
[EventType "swiss"]
[EventRounds "9"]
[EventCountry "GER"]
[SourceTitle "playchess.com"]
[Source "ChessBase"]
[SourceQuality "1"]
[TimeControl "40/4500+30:900+30"]

1. e4 {[%emt 0:00:00]} e6 {[%emt 0:00:00]} 2. d4 {[%emt 0:00:00]} d5 {[%emt 0:00:00]} 3. e5 {[%emt 0:00:00]} c5 {[%emt 0:00:00]} 4. c3 {[%emt 0:00:00]} Nc6 {[%emt 0:00:00]} 5. Nf3 {[%emt 0:00:00]} Qb6 {[%emt 0:00:00]} 6. a3 {[%emt 0:00:00]} f6 {[%emt 0:00:00]} 7. b4 {[%emt 0:00:00]} c4 {[%emt 0:00:00]} 8. Be3 {[%emt 0:00:00]} fxe5 {[%emt 0:00:00]} 9. Nxe5 {[%emt 0:02:22]} Nf6 {[%emt 0:00:26]} 10. Nd2 {[%emt 0:01:53]} Qc7 {[%emt 0:03:05]} 11. f4 {[%emt 0:04:37]} Be7 {[%emt 0:15:58]} 12. Be2 {[%emt 0:02:08]} O-O {[%emt 0:00:39]} 13. O-O {[%emt 0:00:40]} a6 {[%emt 0:05:20]} 14. Qe1 {[%emt 0:04:27]} Nxe5 {[%emt 0:09:19]} 15. fxe5 {[%emt 0:00:59]} Nd7 {[%emt 0:05:10]} 16. Qg3 {[%emt 0:02:20]} g6 {[%emt 0:12:02]} 17. Qh3 {[%emt 0:04:52]} Rxf1+ {[%emt 0:05:01]} 18. Rxf1 {[%emt 0:00:20]} Nf8 {[%emt 0:00:31]} 19. Qf3 {[%emt 0:01:44]} g5 {[%emt 0:09:52]} 20. Bxg5 {[%emt 0:00:30]} Ng6 {[%emt 0:00:36]} 21. Qf7+ {[%emt 0:00:14]} Kh8 {[%emt 0:00:46]} 22. Bh6 {[%emt 0:00:28]} Bd6 {[%emt 0:01:31]} 23. Qe8+ {[%emt 0:00:28]} Bf8 {[%emt 0:01:24]} 24. Qxf8+ {[%emt 0:00:11]} Nxf8 {[%emt 0:00:06]} 25. Rxf8# 1-0

[Event "GER-ch Youth-U14w 2022"]
[Site "Willingen"]
[Date "2022.06.10"]
[Round "8.10"]
[White "Hergenroeder, Cora"]
[Black "Göb, Franziska"]
[Result "1-0"]
[ECO "D30"]
[WhiteElo "1453"]
[BlackElo "1362"]
[Annotator "NA RC COMBH"]
[PlyCount "157"]
[EventDate "2022.06.05"]
[EventType "swiss"]
[EventRounds "9"]
[EventCountry "GER"]
[SourceTitle "playchess.com"]
[Source "ChessBase"]
[SourceQuality "1"]
[TimeControl "40/4500+30:900+30"]

1. d4 {[%emt 0:00:00]} d5 {[%emt 0:00:00]} 2. c4 {[%emt 0:00:00]} e6 {[%emt 0:00:00]} 3. cxd5 {[%emt 0:00:00]} exd5 {[%emt 0:00:00]} 4. Nc3 {[%emt 0:00:00]} c6 {[%emt 0:00:00]} 5. Nf3 {[%emt 0:00:00]} Bf5 {[%emt 0:00:00]} 6. Bf4 {[%emt 0:00:00]} Bd6 {[%emt 0:00:00]} 7. Bg3 {[%emt 0:00:00]} Bxg3 {[%emt 0:00:00]} 8. hxg3 {[%emt 0:00:00]} Nd7 {[%emt 0:00:00]} 9. e3 {[%emt 0:00:00]} h6 {[%emt 0:00:00]} 10. Bd3 {[%emt 0:00:00]} Bxd3 {[%emt 0:00:00]} 11. Qxd3 {[%emt 0:00:00]} Ngf6 {[%emt 0:00:00]} 12. Rb1 {[%emt 0:00:00]} a5 {[%emt 0:00:00]} 13. Na4 {[%emt 0:06:55]} O-O {[%emt 0:02:51]} 14. O-O {[%emt 0:03:07]} Re8 {[%emt 0:04:18]} 15. Rfc1 {[%emt 0:02:22]} Ne4 {[%emt 0:05:22]} 16. Nd2 {[%emt 0:02:27]} f5 {[%emt 0:07:57]} 17. Nb3 {[%emt 0:10:23]} b5 {[%emt 0:07:31]} 18. Nc3 {[%emt 0:02:45]} a4 {[%emt 0:03:32]} 19. Nd2 {[%emt 0:03:19]} Rc8 {[%emt 0:03:54]} 20. Ndxe4 {[%emt 0:02:05]} fxe4 {[%emt 0:00:39]} 21. Qd2 {[%emt 0:00:37]} Qf6 {[%emt 0:03:55]} 22. Rc2 {[%emt 0:01:30]} Nb6 {[%emt 0:01:31]} 23. b3 {[%emt 0:03:53]} axb3 {[%emt 0:02:53]} 24. axb3 {[%emt 0:00:06]} Rf8 {[%emt 0:01:55]} 25. Rbc1 {[%emt 0:02:32]} Qg6 {[%emt 0:04:33]} 26. Nd1 {[%emt 0:08:11]} Nd7 {[%emt 0:02:24]} 27. Nc3 {[%emt 0:03:02]} Nb6 {[%emt 0:00:25]} 28. Nd1 {[%emt 0:02:15]} Nd7 {[%emt 0:00:19]} 29. Qa5 {[%emt 0:03:19]} Ra8 {[%emt 0:05:49]} 30. Qb4 {[%emt 0:10:56]} Rac8 {[%emt 0:02:20]} 31. Nc3 {[%emt 0:01:59]} Rb8 {[%emt 0:05:10]} 32. Ne2 {[%emt 0:03:20]} Rb6 {[%emt 0:03:50]} 33. Qa3 {[%emt 0:03:59]} Nb8 {[%emt 0:03:17]} 34. Ra1 {[%emt 0:03:42]} Ra6 {[%emt 0:01:34]} 35. Qb2 {[%emt 0:00:06]} Rxa1+ {[%emt 0:00:10]} 36. Qxa1 {[%emt 0:00:04]} Qf6 {[%emt 0:00:32]} 37. Nc3 {[%emt 0:00:36]} h5 {[%emt 0:02:04]} 38. Qd1 {[%emt 0:01:38]} h4 {[%emt 0:02:07]} 39. Qg4 {[%emt 0:00:32]} hxg3 {[%emt 0:01:13]} 40. Qxg3 {[%emt 0:00:10]} Qh6 {[%emt 0:01:11]} 41. Ra2 {[%emt 0:17:04]} Nd7 {[%emt 0:17:15]} 42. Qh2 {[%emt 0:06:22]} Qxh2+ {[%emt 0:01:37]} 43. Kxh2 {[%emt 0:00:05]} Rf6 {[%emt 0:02:09]} 44. Kg1 {[%emt 0:00:30]} g5 {[%emt 0:00:58]} 45. Ra7 {[%emt 0:00:00]} Rf7 {[%emt 0:00:00]} 46. Na2 {[%emt 0:00:00]} Nb8 {[%emt 0:00:00]} 47. Ra8 {[%emt 0:00:00]} Rf8 {[%emt 0:00:00]} 48. Nb4 {[%emt 0:00:00]} Kg7 {[%emt 0:00:00]} 49. Ra7+ {[%emt 0:00:00]} Rf7 {[%emt 0:00:00]} 50. Rxf7+ {[%emt 0:00:00]} Kxf7 {[%emt 0:00:00]} 51. Kh2 {[%emt 0:00:00]} Kf6 {[%emt 0:00:00]} 52. Kg3 {[%emt 0:00:00]} Kf5 {[%emt 0:00:00]} 53. Kh3 {[%emt 0:00:00]} Kf6 {[%emt 0:00:00]} 54. f3 {[%emt 0:00:00]} Kf5 {[%emt 0:00:00]} 55. Kg3 {[%emt 0:00:00]} Ke6 {[%emt 0:00:00]} 56. fxe4 {[%emt 0:00:00]} dxe4 {[%emt 0:00:00]} 57. Kg4 {[%emt 0:00:00]} Kf6 {[%emt 0:00:00]} 58. Kh5 {[%emt 0:00:00]} Kf5 {[%emt 0:00:00]} 59. g4+ {[%emt 0:00:00]} Kf6 {[%emt 0:00:00]} 60. Kh6 {[%emt 0:00:00]} Nd7 {[%emt 0:00:00]} 61. Nxc6 {[%emt 0:00:00]} Nb6 {[%emt 0:00:00]} 62. Nb4 {[%emt 0:00:43]} Nc8 {[%emt 0:00:00]} 63. Nd5+ {[%emt 0:00:22]} Ke6 {[%emt 0:00:00]} 64. Nc3 {[%emt 0:00:16]} Nd6 {[%emt 0:00:00]} 65. Kxg5 {[%emt 0:00:47]} b4 {[%emt 0:00:00]} 66. Na4 {[%emt 0:00:31]} Kf7 {[%emt 0:00:00]} 67. Nc5 {[%emt 0:00:26]} Kg7 {[%emt 0:00:00]} 68. Kf4 {[%emt 0:00:32]} Kg6 {[%emt 0:00:00]} 69. Nxe4 {[%emt 0:00:40]} Nb5 {[%emt 0:00:00]} 70. Nc5 {[%emt 0:00:57]} Nc3 {[%emt 0:00:00]} 71. Nd3 {[%emt 0:01:11]} Nd5+ {[%emt 0:00:00]} 72. Kf3 {[%emt 0:01:23]} Kg5 {[%emt 0:00:00]} 73. Ke4 {[%emt 0:00:41]} Nc3+ {[%emt 0:00:00]} 74. Ke5 {[%emt 0:00:09]} Kxg4 {[%emt 0:00:00]} 75. Nxb4 {[%emt 0:00:16]} Kf3 {[%emt 0:00:00]} 76. d5 {[%emt 0:00:47]} Kxe3 {[%emt 0:00:00]} 77. d6 {[%emt 0:00:15]} Nb5 {[%emt 0:00:00]} 78. d7 {[%emt 0:00:41]} Nd6 {[%emt 0:00:00]} 79. Kxd6 1-0

[Event "GER-ch Youth-U14w 2022"]
[Site "Willingen"]
[Date "2022.06.10"]
[Round "8.11"]
[White "Heuberger, Sandra"]
[Black "Bursan, Ana-Maria"]
[Result "0-1"]
[ECO "D10"]
[WhiteElo "1101"]
[BlackElo "1329"]
[Annotator "NA RC COMBH"]
[PlyCount "130"]
[EventDate "2022.06.05"]
[EventType "swiss"]
[EventRounds "9"]
[EventCountry "GER"]
[SourceTitle "playchess.com"]
[Source "ChessBase"]
[SourceQuality "1"]
[TimeControl "40/4500+30:900+30"]

1. d4 {[%emt 0:00:00]} d5 {[%emt 0:00:00]} 2. c4 {[%emt 0:00:00]} c6 {[%emt 0:00:00]} 3. e3 {[%emt 0:00:00]} Nf6 {[%emt 0:00:00]} 4. Nc3 {[%emt 0:00:00]} Bf5 {[%emt 0:00:00]} 5. Nf3 {[%emt 0:00:00]} e6 6. cxd5 {[%emt 0:00:00]} exd5 {[%emt 0:00:00]} 7. Bd3 {[%emt 0:00:00]} Bg4 {[%emt 0:00:57]} 8. O-O {[%emt 0:00:00]} Bd6 {[%emt 0:04:48]} 9. e4 {[%emt 0:01:20]} dxe4 {[%emt 0:02:19]} 10. Nxe4 {[%emt 0:02:29]} Nxe4 {[%emt 0:04:02]} 11. Bxe4 {[%emt 0:02:16]} O-O {[%emt 0:03:02]} 12. Qb3 {[%emt 0:05:05]} Qc7 {[%emt 0:03:23]} 13. h3 {[%emt 0:10:51]} Bh5 {[%emt 0:02:55]} 14. Re1 {[%emt 0:03:26]} Nd7 {[%emt 0:01:48]} 15. Bd2 {[%emt 0:01:46]} Nf6 {[%emt 0:02:07]} 16. Bc2 {[%emt 0:02:35]} Rad8 {[%emt 0:02:36]} 17. Rac1 {[%emt 0:02:16]} Bxf3 {[%emt 0:02:00]} 18. Qxf3 {[%emt 0:00:52]} Bh2+ {[%emt 0:00:59]} 19. Kh1 {[%emt 0:01:44]} Rxd4 {[%emt 0:01:51]} 20. Be3 {[%emt 0:03:44]} Rd5 {[%emt 0:04:35]} 21. Bb3 {[%emt 0:03:07]} Rh5 {[%emt 0:01:38]} 22. Bd4 {[%emt 0:06:38]} Rh6 {[%emt 0:07:27]} 23. Bxf6 {[%emt 0:03:01]} Rxf6 {[%emt 0:01:30]} 24. Qe3 {[%emt 0:01:47]} Bf4 {[%emt 0:03:47]} 25. Qxa7 {[%emt 0:06:46]} Bxc1 {[%emt 0:01:47]} 26. Rxc1 {[%emt 0:02:16]} h6 {[%emt 0:05:12]} 27. Kg1 {[%emt 0:04:20]} Qf4 {[%emt 0:01:33]} 28. Rd1 {[%emt 0:01:36]} Re8 {[%emt 0:02:12]} 29. Bc2 {[%emt 0:01:27]} Rfe6 {[%emt 0:02:53]} 30. Rf1 {[%emt 0:06:28]} Re1 {[%emt 0:02:27]} 31. Bd3 {[%emt 0:05:30]} Qd2 {[%emt 0:03:24]} 32. Qa3 {[%emt 0:03:38]} Rxf1+ {[%emt 0:02:41]} 33. Bxf1 {[%emt 0:00:36]} Re1 {[%emt 0:01:18]} 34. Qf3 {[%emt 0:02:20]} Qd1 {[%emt 0:03:04]} 35. Qxd1 {[%emt 0:02:02]} Rxd1 {[%emt 0:00:08]} 36. g3 {[%emt 0:00:35]} Rd2 {[%emt 0:00:50]} 37. b3 {[%emt 0:01:07]} Rxa2 {[%emt 0:00:19]} 38. Bd3 {[%emt 0:01:25]} Kf8 {[%emt 0:00:40]} 39. Kg2 {[%emt 0:00:18]} Rd2 {[%emt 0:00:53]} 40. Be4 {[%emt 0:00:33]} Rb2 {[%emt 0:00:43]} 41. Kf3 {[%emt 0:15:45]} Rxb3+ {[%emt 0:15:12]} 42. Ke2 {[%emt 0:00:17]} Rb2+ {[%emt 0:00:19]} 43. Ke3 {[%emt 0:00:18]} Ke7 {[%emt 0:00:44]} 44. h4 {[%emt 0:00:40]} Kd6 {[%emt 0:01:01]} 45. f3 {[%emt 0:00:41]} b5 {[%emt 0:01:46]} 46. Kd3 {[%emt 0:00:33]} h5 {[%emt 0:00:28]} 47. g4 {[%emt 0:00:00]} Rh2 {[%emt 0:00:00]} 48. g5 {[%emt 0:00:00]} Rxh4 {[%emt 0:00:00]} 49. Kc3 {[%emt 0:00:00]} Rh3 {[%emt 0:00:00]} 50. Kb4 {[%emt 0:00:00]} Rg3 {[%emt 0:00:00]} 51. g6 {[%emt 0:00:00]} fxg6 {[%emt 0:00:00]} 52. Ka5 {[%emt 0:00:00]} h4 {[%emt 0:00:00]} 53. Kb6 {[%emt 0:00:00]} h3 {[%emt 0:00:00]} 54. Bxc6 {[%emt 0:00:00]} h2 {[%emt 0:00:00]} 55. f4 {[%emt 0:00:00]} b4 {[%emt 0:00:00]} 56. Kb5 {[%emt 0:00:00]} b3 {[%emt 0:00:00]} 57. Be4 {[%emt 0:00:00]} b2 {[%emt 0:00:00]} 58. Kb4 {[%emt 0:00:00]} Rg1 {[%emt 0:00:00]} 59. Kc3 {[%emt 0:00:00]} h1=Q {[%emt 0:00:00]} 60. Bxh1 {[%emt 0:00:00]} b1=Q {[%emt 0:00:00]} 61. Ba8 {[%emt 0:00:00]} Rc1+ {[%emt 0:00:00]} 62. Kd4 {[%emt 0:00:00]} Qb4+ {[%emt 0:00:00]} 63. Ke3 {[%emt 0:00:00]} Rc3+ {[%emt 0:00:00]} 64. Kf2 {[%emt 0:00:00]} Qb2+ {[%emt 0:00:00]} 65. Ke1 {[%emt 0:00:00]} Rc1# 0-1

[Event "GER-ch Youth-U14w 2022"]
[Site "Willingen"]
[Date "2022.06.10"]
[Round "8.12"]
[White "Steinlechner, Katja"]
[Black "Margaryan, Sofia"]
[Result "1/2-1/2"]
[ECO "D02"]
[WhiteElo "1317"]
[BlackElo "1181"]
[Annotator "NA RC COMBH"]
[PlyCount "42"]
[EventDate "2022.06.05"]
[EventType "swiss"]
[EventRounds "9"]
[EventCountry "GER"]
[SourceTitle "playchess.com"]
[Source "ChessBase"]
[SourceQuality "1"]
[TimeControl "40/4500+30:900+30"]

1. d4 {[%emt 0:00:00]} d5 {[%emt 0:00:00]} 2. Nf3 {[%emt 0:00:00]} Bf5 {[%emt 0:00:00]} 3. g3 {[%emt 0:00:00]} e6 {[%emt 0:00:00]} 4. Bg2 {[%emt 0:00:00]} Nf6 {[%emt 0:00:00]} 5. O-O {[%emt 0:00:00]} Bd6 {[%emt 0:00:00]} 6. c4 {[%emt 0:00:00]} O-O {[%emt 0:00:00]} 7. Nc3 {[%emt 0:00:00]} c6 {[%emt 0:00:00]} 8. Nh4 {[%emt 0:00:00]} Bg6 {[%emt 0:00:00]} 9. Nxg6 {[%emt 0:00:00]} hxg6 {[%emt 0:00:00]} 10. cxd5 {[%emt 0:00:00]} cxd5 {[%emt 0:00:00]} 11. Bg5 {[%emt 0:00:00]} Nc6 {[%emt 0:00:00]} 12. Rc1 {[%emt 0:02:31]} Qb6 {[%emt 0:03:03]} 13. Bxf6 {[%emt 0:13:41]} gxf6 {[%emt 0:00:14]} 14. e3 {[%emt 0:12:33]} Qxb2 15. Rc2 {[%emt 0:07:15]} Qb6 {[%emt 0:06:49]} 16. Qb1 {[%emt 0:08:18]} Qxb1 {[%emt 0:00:19]} 17. Rxb1 {[%emt 0:00:23]} Rab8 {[%emt 0:02:44]} 18. Rcb2 {[%emt 0:06:46]} b6 {[%emt 0:05:40]} 19. a4 {[%emt 0:05:57]} f5 {[%emt 0:00:13]} 20. Bf1 {[%emt 0:02:41]} Rb7 {[%emt 0:12:49]} 21. Ba6 {[%emt 0:06:13]} Rbb8 1/2-1/2

[Event "GER-ch Youth-U14w 2022"]
[Site "Willingen"]
[Date "2022.06.10"]
[Round "8.13"]
[White "Modali, Nikhilamrutha"]
[Black "Lorenz, Rebecca"]
[Result "1-0"]
[ECO "C42"]
[WhiteElo "1262"]
[BlackElo "733"]
[Annotator "NA RC COMBH"]
[PlyCount "45"]
[EventDate "2022.06.05"]
[EventType "swiss"]
[EventRounds "9"]
[EventCountry "GER"]
[SourceTitle "playchess.com"]
[Source "ChessBase"]
[SourceQuality "1"]
[TimeControl "40/4500+30:900+30"]

1. e4 {[%emt 0:00:00]} e5 {[%emt 0:00:00]} 2. Nf3 {[%emt 0:00:00]} Nf6 {[%emt 0:00:00]} 3. Nxe5 {[%emt 0:00:00]} Nc6 {[%emt 0:00:00]} 4. Nxc6 {[%emt 0:00:00]} dxc6 {[%emt 0:00:00]} 5. Bc4 {[%emt 0:00:00]} Bc5 {[%emt 0:00:00]} 6. O-O {[%emt 0:00:00]} h5 {[%emt 0:00:00]} 7. e5 Bf5 8. exf6 {[%emt 0:03:49]} Qxf6 {[%emt 0:00:01]} 9. Qe2+ {[%emt 0:03:57]} Kd8 {[%emt 0:01:29]} 10. d3 {[%emt 0:04:45]} Bd6 {[%emt 0:06:42]} 11. Nc3 {[%emt 0:07:20]} Qh4 {[%emt 0:07:20]} 12. g3 {[%emt 0:00:24]} Qh3 {[%emt 0:02:47]} 13. Qf3 {[%emt 0:12:45]} h4 {[%emt 0:08:39]} 14. Qg2 {[%emt 0:03:00]} Qg4 {[%emt 0:08:15]} 15. gxh4 {[%emt 0:04:28]} Qxh4 {[%emt 0:05:20]} 16. Bg5+ {[%emt 0:00:38]} Qxg5 {[%emt 0:02:35]} 17. Qxg5+ {[%emt 0:00:07]} f6 {[%emt 0:02:07]} 18. Qxf5 {[%emt 0:03:48]} Bxh2+ {[%emt 0:06:05]} 19. Kg2 {[%emt 0:00:14]} b5 {[%emt 0:00:32]} 20. Be6 {[%emt 0:00:48]} Rb8 {[%emt 0:01:11]} 21. Qg6 {[%emt 0:00:28]} Ke7 {[%emt 0:01:06]} 22. Qf7+ {[%emt 0:01:37]} Kd8 {[%emt 0:03:03]} 23. Qd7# 1-0

[Event "GER-ch Youth-U14w 2022"]
[Site "Willingen"]
[Date "2022.06.10"]
[Round "8.14"]
[White "Hoffmann, Sophia"]
[Black "Marrufo, Emilia"]
[Result "1-0"]
[ECO "D02"]
[WhiteElo "1289"]
[BlackElo "998"]
[Annotator "NA RC COMBH"]
[PlyCount "92"]
[EventDate "2022.06.05"]
[EventType "swiss"]
[EventRounds "9"]
[EventCountry "GER"]
[SourceTitle "playchess.com"]
[Source "ChessBase"]
[SourceQuality "1"]
[TimeControl "40/4500+30:900+30"]

1. d4 {[%emt 0:00:00]} d5 {[%emt 0:00:00]} 2. Bf4 {[%emt 0:00:00]} Nf6 {[%emt 0:00:00]} 3. Nf3 {[%emt 0:00:00]} Bg4 {[%emt 0:00:00]} 4. e3 {[%emt 0:00:00]} e6 {[%emt 0:00:00]} 5. c4 {[%emt 0:00:00]} c5 {[%emt 0:00:00]} 6. Qb3 {[%emt 0:00:00]} Qb6 {[%emt 0:00:00]} 7. Qxb6 {[%emt 0:00:00]} axb6 {[%emt 0:00:00]} 8. Nc3 {[%emt 0:00:00]} Nc6 {[%emt 0:02:38]} 9. Nb5 {[%emt 0:02:19]} Rc8 {[%emt 0:03:38]} 10. a3 {[%emt 0:15:28]} Be7 {[%emt 0:02:53]} 11. Be2 {[%emt 0:06:08]} O-O 12. O-O Ne4 {[%emt 0:06:44]} 13. Rfd1 {[%emt 0:02:11]} Rfd8 {[%emt 0:04:18]} 14. Rac1 {[%emt 0:06:30]} Bd6 {[%emt 0:06:41]} 15. Nxd6 {[%emt 0:01:38]} Nxd6 {[%emt 0:00:17]} 16. cxd5 {[%emt 0:01:48]} exd5 {[%emt 0:01:05]} 17. dxc5 {[%emt 0:01:40]} bxc5 {[%emt 0:01:25]} 18. Rxc5 {[%emt 0:04:02]} Ne4 {[%emt 0:01:27]} 19. Rcxd5 {[%emt 0:01:33]} Rxd5 {[%emt 0:01:43]} 20. Rxd5 {[%emt 0:01:54]} Rd8 {[%emt 0:01:04]} 21. Rxd8+ {[%emt 0:01:17]} Nxd8 {[%emt 0:00:11]} 22. Nd4 {[%emt 0:02:05]} Bxe2 {[%emt 0:02:01]} 23. Nxe2 {[%emt 0:00:07]} Ne6 {[%emt 0:01:04]} 24. Be5 {[%emt 0:01:11]} N6c5 {[%emt 0:01:51]} 25. Nf4 {[%emt 0:04:28]} f6 {[%emt 0:01:14]} 26. Bd4 {[%emt 0:02:01]} Nb3 {[%emt 0:00:46]} 27. Kf1 {[%emt 0:01:38]} Nxd4 {[%emt 0:01:38]} 28. exd4 {[%emt 0:00:14]} Nd2+ {[%emt 0:00:54]} 29. Ke2 {[%emt 0:00:37]} Nc4 {[%emt 0:00:32]} 30. Nd3 {[%emt 0:00:35]} Kf7 {[%emt 0:00:18]} 31. Kf3 {[%emt 0:07:15]} Ke6 {[%emt 0:01:01]} 32. Nc5+ {[%emt 0:10:09]} Kd5 {[%emt 0:00:25]} 33. Nxb7 {[%emt 0:00:20]} Kxd4 {[%emt 0:00:09]} 34. a4 {[%emt 0:01:28]} Kd5 {[%emt 0:00:47]} 35. b4 {[%emt 0:01:40]} Kc6 {[%emt 0:00:26]} 36. Na5+ {[%emt 0:01:12]} Nxa5 {[%emt 0:00:19]} 37. bxa5 {[%emt 0:00:05]} Kb7 {[%emt 0:00:13]} 38. Ke4 {[%emt 0:00:22]} Ka6 {[%emt 0:00:09]} 39. Kf5 {[%emt 0:00:19]} Kxa5 {[%emt 0:00:17]} 40. Ke6 {[%emt 0:00:10]} Kxa4 {[%emt 0:00:20]} 41. Kf7 {[%emt 0:15:08]} Kb3 {[%emt 0:15:30]} 42. Kxg7 {[%emt 0:03:17]} Kc2 {[%emt 0:02:15]} 43. Kxf6 {[%emt 0:00:45]} Kd2 {[%emt 0:00:19]} 44. Kg7 {[%emt 0:00:10]} Ke2 {[%emt 0:00:10]} 45. Kxh7 {[%emt 0:00:27]} Kxf2 {[%emt 0:00:00]} 46. g4 {[%emt 0:00:05]} Ke2 {[%emt 0:00:00]} 1-0

[Event "GER-ch Youth-U14w 2022"]
[Site "Willingen"]
[Date "2022.06.10"]
[Round "8.15"]
[White "Brandt, Greta"]
[Black "Funke, Luise"]
[Result "1-0"]
[ECO "A13"]
[WhiteElo "1458"]
[BlackElo "970"]
[Annotator "NA RC COMBH"]
[PlyCount "101"]
[EventDate "2022.06.05"]
[EventType "swiss"]
[EventRounds "9"]
[EventCountry "GER"]
[SourceTitle "playchess.com"]
[Source "ChessBase"]
[SourceQuality "1"]
[TimeControl "40/4500+30:900+30"]

1. c4 {[%emt 0:00:00]} e6 {[%emt 0:00:00]} 2. Nc3 {[%emt 0:00:00]} d5 {[%emt 0:00:00]} 3. cxd5 {[%emt 0:00:00]} exd5 {[%emt 0:00:00]} 4. d4 {[%emt 0:00:00]} Nf6 {[%emt 0:00:00]} 5. Bf4 {[%emt 0:00:00]} Be7 {[%emt 0:00:00]} 6. e3 {[%emt 0:00:00]} O-O {[%emt 0:00:00]} 7. Bd3 {[%emt 0:00:00]} c5 {[%emt 0:00:00]} 8. dxc5 {[%emt 0:00:00]} Bxc5 {[%emt 0:00:00]} 9. Nge2 {[%emt 0:00:00]} Nc6 {[%emt 0:00:00]} 10. a3 {[%emt 0:01:43]} d4 {[%emt 0:00:00]} 11. exd4 {[%emt 0:04:20]} Bxd4 {[%emt 0:00:00]} 12. O-O {[%emt 0:02:02]} Bg4 {[%emt 0:00:00]} 13. Qc2 {[%emt 0:01:41]} Be5 {[%emt 0:00:00]} 14. Be3 {[%emt 0:10:23]} Re8 {[%emt 0:05:44]} 15. Rad1 {[%emt 0:02:31]} Qc7 {[%emt 0:00:28]} 16. f4 {[%emt 0:04:09]} Bd6 {[%emt 0:01:51]} 17. Nb5 {[%emt 0:02:32]} Qe7 {[%emt 0:01:43]} 18. Nxd6 {[%emt 0:02:04]} Qxe3+ {[%emt 0:00:54]} 19. Rf2 {[%emt 0:00:20]} Re7 {[%emt 0:01:59]} 20. Nxb7 {[%emt 0:06:55]} Nd4 {[%emt 0:01:13]} 21. Nxd4 {[%emt 0:01:45]} Bxd1 {[%emt 0:00:41]} 22. Qxd1 {[%emt 0:00:07]} Rxb7 {[%emt 0:00:45]} 23. Nf5 {[%emt 0:01:31]} Qe6 {[%emt 0:03:12]} 24. Re2 {[%emt 0:01:20]} Qb6+ {[%emt 0:01:34]} 25. Kh1 {[%emt 0:00:48]} Ng4 {[%emt 0:02:19]} 26. Be4 {[%emt 0:02:40]} Rd8 {[%emt 0:04:10]} 27. Qe1 {[%emt 0:03:16]} Rbb8 {[%emt 0:01:48]} 28. h3 {[%emt 0:05:38]} Nf6 {[%emt 0:02:16]} 29. Qg3 {[%emt 0:01:46]} g6 {[%emt 0:00:36]} 30. Nh6+ {[%emt 0:00:33]} Kf8 {[%emt 0:01:50]} 31. Qf3 {[%emt 0:05:57]} Rd1+ {[%emt 0:02:30]} 32. Kh2 {[%emt 0:00:05]} Qg1+ {[%emt 0:00:18]} 33. Kg3 {[%emt 0:00:03]} Nh5+ {[%emt 0:00:55]} 34. Kh4 {[%emt 0:00:09]} Qb6 {[%emt 0:03:41]} 35. g4 {[%emt 0:03:35]} Qf6+ {[%emt 0:04:46]} 36. g5 {[%emt 0:00:09]} Qxf4+ {[%emt 0:00:38]} 37. Qxf4 {[%emt 0:00:18]} Nxf4 {[%emt 0:00:06]} 38. Rf2 {[%emt 0:00:07]} Nd3 {[%emt 0:02:38]} 39. Rxf7+ {[%emt 0:00:20]} Ke8 {[%emt 0:00:27]} 40. Bc6+ {[%emt 0:02:01]} Kd8 {[%emt 0:00:38]} 41. Rxa7 {[%emt 0:17:56]} Ne5 {[%emt 0:16:45]} 42. Nf7+ {[%emt 0:06:54]} Nxf7 {[%emt 0:00:41]} 43. Rxf7 {[%emt 0:00:05]} Rd4+ {[%emt 0:00:16]} 44. Kg3 {[%emt 0:00:20]} Rb3+ {[%emt 0:00:39]} 45. Bf3 {[%emt 0:02:41]} h5 {[%emt 0:00:47]} 46. gxh6 {[%emt 0:00:18]} Rd1 {[%emt 0:02:27]} 47. h7 {[%emt 0:02:04]} Kc8 {[%emt 0:00:42]} 48. h8=Q+ {[%emt 0:00:17]} Rd8 {[%emt 0:00:08]} 49. Qh4 {[%emt 0:00:43]} Rxb2 {[%emt 0:01:04]} 50. Qc4+ {[%emt 0:00:25]} Kb8 {[%emt 0:00:28]} 51. Qc7# 1-0